fUSD/lending_fUSD_20250826
["ID","MTS","AMOUNT","RATE_DAILY","PERIOD"]
[381436369,1756197056710,-152.0,0.0002842,3]
[381436370,1756197056720,-152.0,0.0002842,3]
[381436371,1756197056730,-152.0,0.0002842,3]
[381436372,1756197056740,-152.0,0.0002842,3]
[381436373,1756197056749,-154.0,0.0002842,3]
[381436374,1756197056759,-154.0,0.0002842,3]
[381436375,1756197056768,-154.0,0.0002842,3]
[381436376,1756197056778,-154.0,0.0002842,3]
[381436377,1756197056787,-154.0,0.0002842,3]
[381436378,1756197056796,-154.0,0.0002842,3]
[381436379,1756197056806,-154.0,0.0002842,3]
[381436380,1756197056817,-154.0,0.0002842,3]
[381436381,1756197056826,-154.0,0.0002842,3]
[381436382,1756197056835,-154.0,0.0002842,3]
[381436383,1756197056844,-462.54732795,0.00028424,2]
[381436384,1756197056854,-200.0,0.0002848,2]
[381436385,1756197056863,-213.0,0.0002849,2]
[381436386,1756197056872,-319.0,0.0002849,2]
[381436387,1756197056881,-693.0,0.00028493,14]
[381436388,1756197056891,-150.0,0.000285,7]
[381436389,1756197056900,-150.0,0.000285,7]
[381436390,1756197056910,-1692.935858,0.000285,2]
[381436391,1756197056919,-729.63,0.00028515,2]
[381436392,1756197056928,-150.0,0.00028515,2]
[381436393,1756197056938,-1185.82,0.00028515,2]
[381436394,1756197056947,-599.0,0.00028529,2]
[381436395,1756197056957,-1658.0,0.00028529,2]
[381436396,1756197056966,-566.0,0.00028529,2]
[381436397,1756197056975,-1298.0,0.00028529,2]
[381436398,1756197056985,-1062.873,0.00028529,2]
[381436399,1756197056994,-6146.0,0.00028529,2]
[381436400,1756197057003,-2031.0,0.00028529,2]
[381436401,1756197057012,-1256.0,0.00028529,2]
[381436402,1756197057022,-926.0,0.00028529,2]
[381436403,1756197057031,-4155.0,0.00028529,2]
[381436404,1756197057041,-771.0,0.00028544,2]
[381436405,1756197057050,-150.0,0.00028569,2]
[381436406,1756197057062,-1057.85,0.000286,30]
[381436407,1756197057071,-150.0,0.00028602,2]
[381436408,1756197057080,-1425.0,0.00028616,2]
[381436409,1756197057090,-2000.0,0.00028616,5]
[381436410,1756197057099,-1425.0,0.00028648,2]
[381436411,1756197057109,-150.0,0.00028675,2]
[381436412,1756197057118,-1425.0,0.00028692,2]
[381436413,1756197057128,-150.0,0.00028699,2]
[381436414,1756197057137,-762.0,0.000287,2]
[381436415,1756197057147,-1000.0,0.00028706,2]
[381436416,1756197057156,-2278.0,0.0002871,2]
[381436417,1756197057165,-1000.0,0.00028725,2]
[381436418,1756197057174,-150.0,0.00028725,2]
[381436419,1756197057184,-1000.0,0.00028737,2]
[381436420,1756197057193,-300.0,0.00028745,2]
[381436421,1756197057202,-150.51791387,0.00028746,2]
[381436422,1756197057212,-19794.7029536,0.00028748,30]
[381436423,1756197057222,-150.0,0.00028751,2]
[381436424,1756197057231,-1000.0,0.00028751,2]
[381436425,1756197057240,-1000.0,0.00028753,2]
[381436426,1756197057250,-693.0,0.00028767,14]
[381436427,1756197057259,-693.0,0.00028767,14]
[381436428,1756197057268,-150.0,0.00028768,2]
[381436429,1756197057277,-151.29383802,0.00028768,2]
[381436430,1756197057286,-150.0,0.00028768,2]
[381436431,1756197057296,-500.0,0.00028768,2]
[381436432,1756197057305,-253.41542723,0.00028768,2]
[381436433,1756197057314,-500.0,0.00028768,2]
[381436434,1756197057324,-614.0,0.00028768,2]
[381436435,1756197057334,-150.0,0.00028768,2]
[381436436,1756197057344,-500.0,0.00028768,2]
[381436437,1756197057354,-150.0,0.00028768,2]
[381436438,1756197057363,-1537.0,0.00028768,2]
[381436439,1756197057372,-500.0,0.00028768,2]
[381436440,1756197057382,-150.0,0.00028768,2]
[381436441,1756197057392,-546.0,0.00028768,2]
[381436442,1756197057401,-500.0,0.00028768,2]
[381436443,1756197057410,-500.0,0.00028768,2]
[381436444,1756197057420,-419.0,0.00028768,2]
[381436445,1756197057429,-150.0,0.00028768,2]
[381436446,1756197057439,-500.0,0.00028768,2]
[381436447,1756197057448,-500.0,0.00028768,2]
[381436448,1756197057458,-500.0,0.00028768,2]
[381436449,1756197057467,-500.0,0.00028768,2]
[381436450,1756197057476,-500.0,0.00028768,2]
[381436451,1756197057486,-1451.0,0.00028768,2]
[381436452,1756197057495,-150.0,0.00028768,2]
[381436453,1756197057505,-500.0,0.00028768,2]
[381436454,1756197057515,-150.0,0.00028768,2]
[381436455,1756197057526,-500.0,0.00028768,2]
[381436456,1756197057535,-459.0,0.00028768,2]
[381436457,1756197057544,-459.0,0.00028768,2]
[381436458,1756197057554,-500.0,0.00028768,2]
[381436459,1756197057564,-150.0,0.00028768,2]
[381436460,1756197057573,-150.0,0.00028768,2]
[381436461,1756197057585,-150.0,0.00028768,2]
[381436462,1756197057597,-300.0,0.00028768,2]
[381436463,1756197057607,-150.0,0.00028768,2]
[381436464,1756197057616,-500.0,0.00028768,2]
[381436465,1756197057627,-150.0,0.00028768,2]
[381436466,1756197057637,-500.0,0.00028768,2]
[381436467,1756197057647,-150.0,0.00028768,2]
[381436468,1756197057657,-1175.0,0.00028768,2]
[381436469,1756197057669,-150.0,0.00028769,2]
[381436470,1756197057680,-150.0,0.0002877,2]
[381436471,1756197057690,-1538.03817054,0.00028774,2]
[381436472,1756197057699,-150.0,0.00028774,2]
[381436473,1756197057709,-150.0,0.00028777,2]
[381436474,1756197057718,-300.0,0.0002878,2]
[381436475,1756197057727,-1425.0,0.00028785,2]
[381436476,1756197057737,-168.0,0.00028799,2]
[381436477,1756197057746,-308.95,0.000288,2]
[381436478,1756197057755,-242.21709933,0.000288,2]
[381436479,1756197057765,-150.0,0.00028802,2]
[381436480,1756197057774,-462.54732795,0.00028807,2]
[381436481,1756197057784,-1000.0,0.00028809,2]
[381436482,1756197057793,-150.0,0.00028809,2]
[381436483,1756197057803,-150.0,0.00028811,2]
[381436484,1756197057812,-872.02135115,0.00028812,2]
[381436485,1756197057822,-1000.0,0.00028812,2]
[381436486,1756197057832,-1000.0,0.00028817,2]
[381436487,1756197057841,-668.73353945,0.0002882,2]
[381436488,1756197057851,-771.0,0.00028824,2]
[381436489,1756197057860,-150.0,0.00028826,2]
[381436490,1756197057870,-1000.0,0.00028827,2]
[381436491,1756197057880,-1000.0,0.00028829,2]
[381436492,1756197057889,-1425.0,0.00028831,2]
[381436493,1756197057898,-154.75,0.00028832,2]
[381436494,1756197057908,-1000.0,0.00028834,2]
[381436495,1756197057917,-1425.0,0.00028842,2]
[381436496,1756197057927,-1000.0,0.00028843,2]
[381436497,1756197057936,-771.0,0.00028847,2]
[381436498,1756197057945,-771.0,0.00028852,2]
[381436499,1756197057955,-154.74852965,0.00028854,2]
[381436500,1756197057966,-1425.0,0.00028856,2]
[381436501,1756197057975,-1000.0,0.00028861,2]
[381436502,1756197057986,-1425.0,0.00028868,2]
[381436503,1756197057996,-1000.0,0.00028872,2]
[381436504,1756197058006,-771.0,0.00028878,2]
[381436505,1756197058016,-1000.0,0.00028879,2]
[381436506,1756197058026,-1000.0,0.00028882,2]
[381436507,1756197058037,-491.80451806,0.00028883,2]
[381436508,1756197058047,-515.71993209,0.00028885,2]
[381436509,1756197058058,-300.0,0.00028886,2]
[381436510,1756197058069,-1000.0,0.00028898,2]
[381436511,1756197058079,-1425.0,0.00028899,2]
[381436512,1756197058089,-1425.0,0.00028904,2]
[381436513,1756197058099,-150.0,0.00028912,2]
[381436514,1756197058109,-1425.0,0.00028922,2]
[381436515,1756197058119,-1000.0,0.00028928,2]
[381436516,1756197058129,-1000.0,0.0002894,2]
[381436517,1756197058140,-150.0,0.00028944,2]
[381436518,1756197058151,-1425.0,0.00028951,2]
[381436519,1756197058160,-500.0,0.0002897,2]
[381436520,1756197058169,-1000.0,0.0002897,2]
[381436521,1756197058179,-500.0,0.00028973,5]
[381436522,1756197058188,-460.2017041,0.00028973,5]
[381436523,1756197058198,-500.0,0.00028973,5]
[381436524,1756197058207,-640.15524874,0.00028973,5]
[381436525,1756197058217,-500.0,0.00028973,5]
[381436526,1756197058227,-300.0,0.00028979,10]
[381436527,1756197058237,-300.0,0.00028979,10]
[381436528,1756197058247,-500.0,0.00028979,10]
[381436529,1756197058256,-300.0,0.00028989,10]
[381436530,1756197058266,-300.0,0.00028989,10]
[381436531,1756197058275,-500.0,0.00028989,10]
[381436532,1756197058285,-300.0,0.00028999,10]
[381436533,1756197058295,-300.0,0.00028999,10]
[381436534,1756197058305,-500.84492074,0.00028999,10]
[381436535,1756197058315,-150.0,0.00028999,2]
[381436536,1756197058325,-1963.97,0.00028999,2]
[381436537,1756197058337,-1054.9769,0.00028999,2]
[381436538,1756197058347,-67788.88395176,0.00029,2]
[381436539,1756197058357,-1800.0,0.00029,30]
[381436540,1756197058367,-242.96,0.00029,7]
[381436541,1756197058376,-50977.11128449,0.00029,2]
[381436542,1756197058386,-16116.53971017,0.00029,2]
[381436543,1756197058395,-730.1,0.00029,7]
[381436544,1756197058405,-1216.84,0.00029,7]
[381436545,1756197058415,-308.27,0.00029,7]
[381436546,1756197058425,-1800.0,0.00029,30]
[381436547,1756197058435,-166.0,0.00029,30]
[381436548,1756197058444,-300.0,0.00029,2]
[381436549,1756197058454,-165.0,0.00029,30]
[381436550,1756197058464,-331.0,0.00029,30]
[381436551,1756197058474,-174.0,0.00029,30]
[381436552,1756197058484,-250.0,0.00029,30]
[381436553,1756197058847,-250.0,0.00029,30]
[381436554,1756197058857,-3046.48,0.00029,7]
[381436555,1756197058867,-225.0,0.00029,30]
[381436556,1756197058876,-1157.4,0.00029,7]
[381436557,1756197058886,-300.0,0.00029,2]
[381436558,1756197058896,-1998.38,0.00029,7]
[381436559,1756197058905,-264.17261692,0.00029,2]
[381436560,1756197058914,-286.0,0.00029,30]
[381436561,1756197058923,-2278.0,0.00029,2]
[381436562,1756197058932,-834.06385483,0.00029,2]
[381436563,1756197058941,-399.48,0.00029,7]
[381436564,1756197058951,-844.63891918,0.00029,3]
[381436565,1756197058960,-631.15,0.00029,7]
[381436566,1756197058970,-388.0221368,0.00029,2]
[381436567,1756197058979,-506.045782,0.00029,2]
[381436568,1756197058988,-213.0,0.00029,2]
[381436569,1756197058998,-213.0,0.00029,2]
[381436570,1756197059008,-213.0,0.00029,2]
[381436571,1756197059017,-213.0,0.00029,2]
[381436572,1756197059026,-213.0,0.00029,2]
[381436573,1756197059036,-213.0,0.00029,2]
[381436574,1756197059045,-319.0,0.00029,2]
[381436575,1756197059055,-319.0,0.00029,2]
[381436576,1756197059065,-319.0,0.00029,2]
[381436577,1756197059075,-319.0,0.00029,2]
[381436578,1756197059084,-319.0,0.00029,2]
[381436579,1756197059093,-319.0,0.00029,2]
[381436580,1756197059102,-212.0,0.00029,2]
[381436581,1756197059113,-212.0,0.00029,2]
[381436582,1756197059123,-212.0,0.00029,2]
[381436583,1756197059133,-212.0,0.00029,2]
[381436584,1756197059142,-212.0,0.00029,2]
[381436585,1756197059151,-844.63891918,0.00029,30]
[381436586,1756197059161,-235.0,0.00029,2]
[381436587,1756197059170,-235.0,0.00029,2]
[381436588,1756197059179,-235.0,0.00029,2]
[381436589,1756197059188,-5563.25,0.00029,7]
[381436590,1756197059197,-165.7,0.00029,20]
[381436591,1756197059207,-235.0,0.00029,2]
[381436592,1756197059217,-235.0,0.00029,2]
[381436593,1756197059226,-235.0,0.00029,2]
[381436594,1756197059235,-458.7662338,0.00029,30]
[381436595,1756197059245,-150.0,0.00029,2]
[381436596,1756197059254,-300.0,0.00029,2]
[381436597,1756197059264,-1500.0,0.00029,2]
[381436598,1756197059273,-160.0,0.00029,30]
[381436599,1756197059282,-4000.0,0.00029,4]
[381436600,1756197059291,-3231.33,0.00029,7]
[381436601,1756197059300,-3000.0,0.00029038,7]
[381436602,1756197059310,-150.0,0.00029042,2]
[381436603,1756197059320,-150.0,0.00029042,2]
[381436604,1756197059329,-500.0,0.00029042,2]
[381436605,1756197059339,-500.0,0.00029042,2]
[381436606,1756197059348,-614.0,0.00029042,2]
[381436607,1756197059357,-238.86460862,0.00029042,2]
[381436608,1756197059367,-500.0,0.00029042,2]
[381436609,1756197059377,-150.0,0.00029042,2]
[381436610,1756197059386,-1537.0,0.00029042,2]
[381436611,1756197059396,-500.0,0.00029042,2]
[381436612,1756197059407,-150.0,0.00029042,2]
[381436613,1756197059416,-546.0,0.00029042,2]
[381436614,1756197059426,-500.0,0.00029042,2]
[381436615,1756197059435,-500.0,0.00029042,2]
[381436616,1756197059445,-419.0,0.00029042,2]
[381436617,1756197059455,-150.0,0.00029042,2]
[381436618,1756197059466,-500.0,0.00029042,2]
[381436619,1756197059476,-500.0,0.00029042,2]
[381436620,1756197059485,-500.0,0.00029042,2]
[381436621,1756197059494,-500.0,0.00029042,2]
[381436622,1756197059504,-500.0,0.00029042,2]
[381436623,1756197059514,-1451.0,0.00029042,2]
[381436624,1756197059524,-500.0,0.00029042,2]
[381436625,1756197059533,-150.0,0.00029042,2]
[381436626,1756197059542,-500.0,0.00029042,2]
[381436627,1756197059552,-459.0,0.00029042,2]
[381436628,1756197059564,-459.0,0.00029042,2]
[381436629,1756197059573,-500.0,0.00029042,2]
[381436630,1756197059584,-150.0,0.00029042,2]
[381436631,1756197059597,-300.0,0.00029042,2]
[381436632,1756197059606,-500.0,0.00029042,2]
[381436633,1756197059616,-500.0,0.00029042,2]
[381436634,1756197059626,-1175.0,0.00029042,2]
[381436635,1756197059637,-2000.0,0.00029079,2]
[381436636,1756197059647,-33131.04418591,0.0002908,11]
[381436637,1756197059658,-771.0,0.00029116,2]
[381436638,1756197059668,-1194.15178,0.0002914,2]
[381436639,1756197059678,-451.5,0.00029155,15]
[381436640,1756197059688,-2500.0,0.00029164,5]
[381436641,1756197059697,-386.87667747,0.00029165,2]
[381436642,1756197059707,-309.29654756,0.00029165,2]
[381436643,1756197059717,-271.0,0.0002918,30]
[381436644,1756197059727,-462.54732795,0.00029189,2]
[381436645,1756197059737,-2047.31,0.000292,7]
[381436646,1756197059746,-42977.78,0.000292,7]
[381436647,1756197059756,-5000.0,0.00029206,2]
[381436648,1756197059765,-959.75,0.0002928,7]
[381436649,1756197059775,-300.0,0.00029288,2]
[381436650,1756197059784,-2278.0,0.0002929,2]
[381436651,1756197059793,-35145.8,0.000293,2]
[381436652,1756197059802,-715.37,0.000293,7]
[381436653,1756197059814,-2000.0,0.00029315,2]
[381436654,1756197059823,-150.0,0.00029316,2]
[381436655,1756197059833,-150.0,0.00029316,2]
[381436656,1756197059843,-500.0,0.00029316,2]
[381436657,1756197059853,-315.59172657,0.00029316,2]
[381436658,1756197059863,-614.0,0.00029316,2]
[381436659,1756197059873,-500.0,0.00029316,2]
[381436660,1756197059884,-150.0,0.00029316,2]
[381436661,1756197059894,-1537.0,0.00029316,2]
[381436662,1756197059904,-500.0,0.00029316,2]
[381436663,1756197059914,-257.84538595,0.00029316,2]
[381436664,1756197059923,-546.0,0.00029316,2]
[381436665,1756197059932,-303.94106986,0.00029316,2]
[381436666,1756197059941,-500.0,0.00029316,2]
[381436667,1756197059950,-419.0,0.00029316,2]
[381436668,1756197059959,-287.71065373,0.00029316,2]
[381436669,1756197059969,-500.0,0.00029316,2]
[381436670,1756197059980,-500.0,0.00029316,2]
[381436671,1756197059990,-500.0,0.00029316,2]
[381436672,1756197060000,-500.0,0.00029316,2]
[381436673,1756197060011,-500.0,0.00029316,2]
[381436674,1756197060022,-1451.0,0.00029316,2]
[381436675,1756197060032,-150.0,0.00029316,2]
[381436676,1756197060042,-500.0,0.00029316,2]
[381436677,1756197060051,-459.0,0.00029316,2]
[381436678,1756197060061,-459.0,0.00029316,2]
[381436679,1756197060072,-405.93645903,0.00029316,2]
[381436680,1756197060082,-150.0,0.00029316,2]
[381436681,1756197060091,-300.0,0.00029316,2]
[381436682,1756197060103,-500.0,0.00029316,2]
[381436683,1756197060113,-500.0,0.00029316,2]
[381436684,1756197060123,-1175.0,0.00029316,2]
[381436685,1756197060135,-305.08,0.00029339,2]
[381436686,1756197060145,-538.02,0.00029339,2]
[381436687,1756197060155,-348.85,0.00029339,2]
[381436688,1756197060165,-1000.0,0.00029464,2]
[381436689,1756197060174,-1500.0,0.000295,2]
[381436690,1756197060183,-1000.0,0.00029521,5]
[381436691,1756197060193,-1000.0,0.00029521,5]
[381436692,1756197060202,-1000.0,0.00029561,2]
[381436693,1756197060211,-462.54732795,0.00029571,2]
[381436694,1756197060221,-2278.0,0.0002958,2]
[381436695,1756197060231,-1900.0,0.00029586,7]
[381436696,1756197060240,-226.47561258,0.0002959,2]
[381436697,1756197060249,-150.0,0.0002959,2]
[381436698,1756197060258,-500.0,0.0002959,2]
[381436699,1756197060267,-614.0,0.0002959,2]
[381436700,1756197060276,-500.0,0.0002959,2]
[381436701,1756197060285,-236.93645079,0.0002959,2]
[381436702,1756197060293,-1537.0,0.0002959,2]
[381436703,1756197060303,-500.0,0.0002959,2]
[381436704,1756197060311,-546.0,0.0002959,2]
[381436705,1756197060321,-500.0,0.0002959,2]
[381436706,1756197060331,-419.0,0.0002959,2]
[381436707,1756197060340,-500.0,0.0002959,2]
[381436708,1756197060349,-500.0,0.0002959,2]
[381436709,1756197060358,-500.0,0.0002959,2]
[381436710,1756197060367,-500.0,0.0002959,2]
[381436711,1756197060376,-1451.0,0.0002959,2]
[381436712,1756197060386,-162.06009613,0.0002959,2]
[381436713,1756197060395,-500.0,0.0002959,2]
[381436714,1756197060405,-459.0,0.0002959,2]
[381436715,1756197060415,-459.0,0.0002959,2]
[381436716,1756197060425,-243.32979931,0.0002959,2]
[381436717,1756197060435,-300.0,0.0002959,2]
[381436718,1756197060444,-500.0,0.0002959,2]
[381436719,1756197060453,-500.0,0.0002959,2]
[381436720,1756197060463,-1175.0,0.0002959,2]
[381436721,1756197060473,-1000.0,0.00029596,2]
[381436722,1756197060482,-1000.0,0.00029684,2]
[381436723,1756197060492,-10383.51663219,0.00029699,2]
[381436724,1756197060501,-4204.2434504,0.000297,2]
[381436725,1756197060511,-500.0,0.00029713,2]
[381436726,1756197060521,-150.0,0.00029755,2]
[381436727,1756197060531,-800.0,0.00029764,13]
[381436728,1756197060540,-800.0,0.00029764,13]
[381436729,1756197060549,-200.0,0.00029764,2]
[381436730,1756197060558,-209.0,0.00029764,2]
[381436731,1756197060570,-800.0,0.00029764,13]
[381436732,1756197060580,-800.0,0.00029764,13]
[381436733,1756197060593,-800.0,0.00029764,13]
[381436734,1756197060602,-800.0,0.00029764,13]
[381436735,1756197060611,-800.0,0.00029764,13]
[381436736,1756197060620,-800.0,0.00029764,13]
[381436737,1756197060629,-800.0,0.00029764,13]
[381436738,1756197060639,-800.0,0.00029764,13]
[381436739,1756197060648,-800.0,0.00029764,13]
[381436740,1756197060657,-800.0,0.00029764,13]
[381436741,1756197060668,-800.0,0.00029764,13]
[381436742,1756197060678,-942.0,0.00029764,13]
[381436743,1756197060687,-800.0,0.00029764,13]
[381436744,1756197060696,-800.0,0.00029764,13]
[381436745,1756197060705,-200.0,0.00029764,2]
[381436746,1756197060715,-200.0,0.00029764,2]
[381436747,1756197060724,-200.0,0.00029764,2]
[381436748,1756197060734,-200.0,0.00029764,2]
[381436749,1756197060743,-200.0,0.00029764,2]
[381436750,1756197060753,-200.0,0.00029764,2]
[381436751,1756197060762,-200.0,0.00029764,2]
[381436752,1756197060771,-800.0,0.00029764,13]
[381436753,1756197060780,-800.0,0.00029764,13]
[381436754,1756197060789,-800.0,0.00029764,13]
[381436755,1756197060799,-800.0,0.00029764,13]
[381436756,1756197060807,-800.0,0.00029764,13]
[381436757,1756197060818,-800.0,0.00029764,13]
[381436758,1756197060828,-800.0,0.00029764,13]
[381436759,1756197060837,-800.0,0.00029764,13]
[381436760,1756197060846,-800.0,0.00029764,13]
[381436761,1756197060855,-800.0,0.00029764,13]
[381436762,1756197060864,-800.0,0.00029764,13]
[381436763,1756197060873,-800.0,0.00029764,13]
[381436764,1756197060883,-800.0,0.00029764,13]
[381436765,1756197060892,-800.0,0.00029764,13]
[381436766,1756197060901,-800.0,0.00029764,13]
[381436767,1756197060910,-200.0,0.00029764,2]
[381436768,1756197060919,-200.0,0.00029764,2]
[381436769,1756197060929,-200.0,0.00029764,2]
[381436770,1756197060938,-200.0,0.00029764,2]
[381436771,1756197060947,-200.0,0.00029764,2]
[381436772,1756197060956,-200.0,0.00029764,2]
[381436773,1756197060966,-200.0,0.00029764,2]
[381436774,1756197060975,-200.0,0.00029764,2]
[381436775,1756197060984,-200.0,0.00029764,2]
[381436776,1756197060993,-200.0,0.00029764,2]
[381436777,1756197061003,-200.0,0.00029764,2]
[381436778,1756197061012,-200.0,0.00029764,2]
[381436779,1756197061021,-200.0,0.00029764,2]
[381436780,1756197061030,-200.0,0.00029764,2]
[381436781,1756197061040,-800.0,0.00029764,13]
[381436782,1756197061050,-800.0,0.00029764,13]
[381436783,1756197061059,-200.0,0.00029764,2]
[381436784,1756197061070,-800.0,0.00029764,13]
[381436785,1756197061079,-800.0,0.00029764,13]
[381436786,1756197061088,-800.0,0.00029764,13]
[381436787,1756197061098,-800.0,0.00029764,13]
[381436788,1756197061107,-200.0,0.00029764,2]
[381436789,1756197061116,-200.0,0.00029764,2]
[381436790,1756197061126,-200.0,0.00029764,2]
[381436791,1756197061135,-200.0,0.00029764,2]
[381436792,1756197061144,-200.0,0.00029764,2]
[381436793,1756197061259,-200.0,0.00029764,2]
[381436794,1756197061269,-200.0,0.00029764,2]
[381436795,1756197061278,-200.0,0.00029764,2]
[381436796,1756197061287,-800.0,0.00029764,13]
[381436797,1756197061296,-800.0,0.00029764,13]
[381436798,1756197061307,-800.0,0.00029764,13]
[381436799,1756197061315,-800.0,0.00029764,13]
[381436800,1756197061324,-200.0,0.00029764,2]
[381436801,1756197061334,-200.0,0.00029764,2]
[381436802,1756197061345,-800.0,0.00029764,13]
[381436803,1756197061355,-800.0,0.00029764,13]
[381436804,1756197061364,-800.0,0.00029764,13]
[381436805,1756197061373,-800.0,0.00029764,13]
[381436806,1756197061383,-800.0,0.00029764,13]
[381436807,1756197061392,-800.0,0.00029764,13]
[381436808,1756197061401,-800.0,0.00029764,13]
[381436809,1756197061411,-800.0,0.00029764,13]
[381436810,1756197061420,-800.0,0.00029764,13]
[381436811,1756197061430,-800.0,0.00029764,13]
[381436812,1756197061440,-800.0,0.00029764,13]
[381436813,1756197061450,-800.0,0.00029764,13]
[381436814,1756197061459,-800.0,0.00029764,13]
[381436815,1756197061468,-200.0,0.00029764,2]
[381436816,1756197061478,-800.0,0.00029764,13]
[381436817,1756197061489,-800.0,0.00029764,13]
[381436818,1756197061499,-800.0,0.00029764,13]
[381436819,1756197061508,-800.0,0.00029764,13]
[381436820,1756197061517,-800.0,0.00029764,13]
[381436821,1756197061527,-800.0,0.00029764,13]
[381436822,1756197061536,-800.0,0.00029764,13]
[381436823,1756197061545,-800.0,0.00029764,13]
[381436824,1756197061555,-800.0,0.00029764,13]
[381436825,1756197061566,-800.0,0.00029764,13]
[381436826,1756197061575,-800.0,0.00029764,13]
[381436827,1756197061590,-800.0,0.00029764,13]
[381436828,1756197061599,-800.0,0.00029764,13]
[381436829,1756197061608,-800.0,0.00029764,13]
[381436830,1756197061618,-800.0,0.00029764,13]
[381436831,1756197061629,-800.0,0.00029764,13]
[381436832,1756197061639,-800.0,0.00029764,13]
[381436833,1756197061648,-800.0,0.00029764,13]
[381436834,1756197061658,-800.0,0.00029764,13]
[381436835,1756197061668,-800.0,0.00029764,13]
[381436836,1756197061677,-200.0,0.00029764,2]
[381436837,1756197061686,-800.0,0.00029764,13]
[381436838,1756197061695,-800.0,0.00029764,13]
[381436839,1756197061705,-33131.04418591,0.00029777,12]
[381436840,1756197061714,-300.0,0.00029789,10]
[381436841,1756197061723,-300.0,0.00029789,10]
[381436842,1756197061733,-12000.0,0.0002979,7]
[381436843,1756197061742,-12000.0,0.0002979,7]
[381436844,1756197061752,-177.613696,0.0002979,7]
[381436845,1756197061761,-12000.0,0.0002979,7]
[381436846,1756197061771,-177.613696,0.0002979,7]
[381436847,1756197061780,-12000.0,0.0002979,7]
[381436848,1756197061790,-177.613696,0.0002979,7]
[381436849,1756197061800,-151.0,0.0002979,7]
[381436850,1756197061809,-177.613696,0.0002979,7]
[381436851,1756197061822,-151.0,0.0002979,7]
[381436852,1756197061832,-656.785412,0.0002979,7]
[381436853,1756197061841,-656.785412,0.0002979,7]
[381436854,1756197061851,-155.658208,0.0002979,7]
[381436855,1756197061860,-612.369938,0.0002979,7]
[381436856,1756197061870,-656.785412,0.0002979,7]
[381436857,1756197061880,-612.369938,0.0002979,7]
[381436858,1756197061890,-155.658208,0.0002979,7]
[381436859,1756197061902,-151.0,0.0002979,7]
[381436860,1756197061913,-656.785412,0.0002979,7]
[381436861,1756197061923,-155.658208,0.0002979,7]
[381436862,1756197061932,-612.369938,0.0002979,7]
[381436863,1756197061942,-151.0,0.0002979,7]
[381436864,1756197061951,-155.658208,0.0002979,7]
[381436865,1756197061960,-612.369938,0.0002979,7]
[381436866,1756197061970,-151.0,0.0002979,7]
[381436867,1756197061980,-214.131079,0.0002979,7]
[381436868,1756197061989,-151.0,0.0002979,7]